bitfinex/quotes_ETHUSD_20260310
["timestamp","ask_amount","ask_price","bid_price","bid_amount"]
[1773110644352,1.385,2049.9,2049.0,1.2269361]
[1773110644556,2.60458791,2049.9,2049.0,1.2269361]
[1773110644772,1.21958791,2049.9,2049.0,1.2269361]
[1773110645177,4.87805714,2050.0,2049.1,1.22004782]
[1773110646282,4.87805714,2050.0,2049.0,2.44700075]
[1773110647265,4.87805714,2050.0,2049.1,1.2259361]
[1773110647462,1.21951219,2050.0,2049.1,1.2259361]
[1773110647781,6.26085546,2050.1,2049.1,1.2259361]
[1773110647782,2.60245632,2050.1,2049.1,1.2259361]
[1773110648147,3.79552032,2050.1,2049.1,1.2259361]
[1773110648354,3.33614368,2049.6,2048.8,0.001]
[1773110648690,1.381,2049.5,2048.8,2.08779064]
[1773110649790,1.21986923,2049.4,2048.8,1.97612587]
[1773110650102,1.381,2049.5,2048.8,1.97612587]
[1773110650282,2.6008229,2049.5,2048.8,1.97612587]
[1773110652886,2.6008229,2049.5,2048.8,1.91612587]
[1773110653056,1.381,2049.5,2048.8,1.91612587]
[1773110653252,1.378,2049.6,2048.9,2.00145825]
[1773110653662,1.2198097,2049.5,2048.9,2.00145825]
[1773110654989,4.55609441,2049.5,2048.9,2.00145825]
[1773110655595,1.2198097,2049.5,2048.1,2.00145825]
[1773110655899,3.33628471,2048.7,2048.1,2.00145825]
[1773110656101,7.53954792,2049.5,2048.2,1.7698902]
[1773110656274,1.376,2049.4,2048.9,0.001]
[1773110656479,1.376,2049.4,2048.4,1.7698902]
[1773110656869,3.33628471,2049.2,2048.6,0.001]
[1773110657371,3.68612333,2049.4,2048.1,1.7698902]
[1773110657372,3.33628471,2048.9,2048.1,1.7698902]
[1773110657572,1.375,2048.8,2048.1,1.7698902]
[1773110657904,1.22028603,2048.7,2048.1,1.7698902]
[1773110658279,2.59523502,2048.8,2048.1,1.7698902]
[1773110658486,1.22023502,2048.8,2048.1,1.7698902]
[1773110658704,6.25584618,2048.9,2048.1,1.7698902]
[1773110658705,2.59520771,2048.9,2048.1,1.7698902]
[1773110660805,3.33628471,2048.7,2048.1,1.7698902]
[1773110661005,2.59520771,2048.9,2048.1,1.7698902]
[1773110661234,3.33628471,2048.5,2047.8,1.7398902]
[1773110661440,1.22020771,2048.9,2047.8,1.7398902]
[1773110661640,8.29495064,2049.3,2048.0,1.7398902]
[1773110661641,1.374,2049.2,2048.0,1.7398902]
[1773110661827,1.22004782,2049.1,2048.2,1.7398902]
[1773110662222,3.33628471,2049.0,2047.5,1.7398902]
[1773110662932,1.374,2048.9,2047.6,1.7398902]
[1773110663833,2.5941858,2048.9,2047.7,1.22088196]
[1773110664038,2.5941858,2048.9,2047.8,1.7398902]
[1773110664338,1.28540523,2049.4,2047.9,1.7398902]
[1773110664509,1.373,2049.2,2047.9,1.7398902]
[1773110664707,3.33628471,2049.0,2047.6,1.7398902]
[1773110664907,5.64640804,2049.0,2047.7,1.7398902]
[1773110665129,3.33628471,2049.0,2047.7,1.7398902]
[1773110665946,1.22004782,2049.1,2047.9,1.7398902]
[1773110666144,1.22002419,2049.2,2047.9,1.7398902]
[1773110668046,4.55625853,2049.3,2048.1,1.7398902]
[1773110668537,3.33628471,2049.0,2048.1,1.7398902]
[1773110668743,4.70928471,2049.0,2048.1,1.7398902]
[1773110668952,3.33628471,2048.7,2047.3,1.7398902]
[1773110669152,4.70928471,2049.0,2047.5,1.7398902]
[1773110669452,0.002,2048.8,2048.0,1.7398902]
[1773110670019,1.22222647,2048.8,2048.0,1.7398902]
[1773110672150,0.002,2048.8,2048.0,1.7398902]
[1773110673922,0.002,2048.8,2047.9,0.001]
[1773110674515,3.3390516,2048.3,2047.9,0.001]
[1773110675020,3.3390516,2048.0,2047.4,1.44076042]
[1773110675216,1.371,2048.5,2047.5,1.44076042]
[1773110676125,4.55955484,2048.4,2047.5,1.44076042]
[1773110677861,1.371,2048.3,2046.7,1.44076042]
[1773110678024,3.3390516,2048.0,2046.8,1.44076042]
[1773110678227,1.22076273,2047.9,2047.0,1.44076042]
[1773110679334,3.3390516,2047.7,2047.0,1.44076042]
[1773110679653,4.7100516,2047.7,2047.0,1.44076042]
[1773110680356,1.22094159,2047.6,2047.0,1.44076042]
[1773110680557,1.22094159,2047.6,2046.2,1.44076042]
[1773110680732,1.371,2047.7,2046.6,1.44076042]
[1773110682461,1.371,2047.7,2046.8,1.224763]
[1773110682659,2.59188603,2047.7,2046.8,1.224763]
[1773110683363,1.371,2047.7,2047.2,0.001]
[1773110683721,1.22085882,2047.8,2047.2,0.001]
[1773110686351,1.22094159,2047.6,2047.2,0.001]
[1773110686656,1.22092717,2047.7,2047.2,0.001]
[1773110687555,1.22083397,2047.8,2047.2,0.001]
[1773110687927,2.32763403,2048.5,2047.3,1.224763]
[1773110688132,1.37,2048.4,2047.3,1.224763]
[1773110688435,1.37,2048.4,2047.5,1.224763]
[1773110690550,0.002,2048.6,2047.8,1.14656884]
[1773110691066,1.2223529,2048.6,2047.8,1.14656884]
[1773110691280,1.2223529,2048.6,2047.4,1.14656884]
[1773110691281,3.3390516,2048.4,2047.4,1.14656884]
[1773110691569,0.002,2048.6,2047.4,1.14656884]
[1773110691756,4.56140655,2048.6,2047.4,1.14656884]
[1773110692136,3.3390516,2048.3,2047.4,1.14656884]
[1773110692340,4.81812599,2048.6,2047.4,1.14656884]
[1773110692534,4.81812599,2048.6,2047.6,1.14656884]
[1773110693057,1.47907439,2048.6,2047.6,1.14656884]
[1773110694951,1.22235495,2048.6,2047.6,1.14656884]
[1773110695334,0.002,2048.6,2047.6,1.14656884]
[1773110695734,1.22235026,2048.6,2047.6,1.14656884]
[1773110696264,2.59235026,2048.6,2047.6,1.14656884]
[1773110696937,3.3842464,2048.6,2047.6,2.36750698]
[1773110697179,3.3842464,2048.6,2047.6,1.14656884]
[1773110697345,0.78988252,2048.5,2047.6,1.14656884]
[1773110698268,0.002,2048.4,2047.7,1.14656884]
[1773110698783,0.002,2048.8,2048.3,1.14656884]
[1773110699654,0.002,2048.8,2047.9,1.14656884]
[1773110700995,4.12109439,2048.6,2047.6,1.14656884]
[1773110701282,0.78404279,2048.8,2047.6,1.14656884]
[1773110701670,0.002,2048.8,2047.8,1.14656884]
[1773110701999,3.3390516,2048.1,2047.4,0.001]
[1773110702199,0.77995901,2048.0,2047.4,0.001]
[1773110702518,4.11801061,2047.8,2047.2,0.001]
[1773110702864,1.22088196,2047.7,2047.2,0.001]
[1773110703057,1.22086874,2047.8,2047.2,0.001]
[1773110703557,2.32763403,2048.1,2047.2,1.16250525]
[1773110703792,1.369,2048.2,2047.2,1.16250525]
[1773110703995,3.54989708,2048.8,2047.5,1.16150525]
[1773110704286,0.002,2048.8,2047.5,1.16150525]
[1773110704493,0.002,2048.8,2047.8,1.16150525]
[1773110704658,1.22222818,2048.8,2047.8,1.16150525]
[1773110704857,0.002,2048.8,2047.9,1.16150525]
[1773110706076,3.3390516,2048.4,2047.4,1.16150525]
[1773110706277,1.368,2048.3,2047.4,1.16150525]
[1773110706477,1.368,2048.4,2047.4,1.16150525]
[1773110706882,1.22052433,2048.3,2047.3,1.22107883]
[1773110707074,6.25009734,2048.4,2047.4,1.16150525]
[1773110707075,2.58851073,2048.4,2047.4,1.16150525]
[1773110708063,2.58847646,2048.4,2047.4,1.16150525]
[1773110708262,1.368,2048.4,2047.4,1.16150525]
[1773110708560,2.58834119,2048.7,2047.4,1.16150525]
[1773110708760,5.92739279,2048.7,2047.6,1.16150525]
[1773110709360,0.002,2048.8,2047.6,1.16150525]
[1773110709562,0.002,2048.8,2047.9,1.16150525]
[1773110709762,1.2222281,2048.8,2047.9,1.16150525]
[1773110709983,0.002,2048.8,2047.9,1.16150525]
[1773110710582,1.369,2048.8,2047.9,1.16150525]
[1773110710783,2.58923026,2048.8,2047.9,1.16150525]
[1773110710984,0.002,2048.8,2048.1,1.16150525]
[1773110711184,0.002,2048.9,2048.4,1.16150525]
[1773110711974,0.002,2048.6,2048.3,1.16150525]
[1773110712526,0.002,2048.6,2048.1,1.16150525]
[1773110713200,0.002,2048.9,2048.2,1.16150525]
[1773110713984,0.002,2048.9,2048.4,1.16150525]
[1773110714208,0.002,2048.8,2048.2,2.720233]
[1773110714512,0.002,2048.8,2048.2,3.88173825]
[1773110714719,0.002,2048.9,2048.3,1.16150525]
[1773110714896,0.002,2048.9,2048.4,1.22046475]
[1773110715218,0.004,2048.9,2048.5,1.16150525]
[1773110715584,0.002,2048.9,2048.5,1.16150525]
[1773110717089,0.002,2049.0,2048.6,2.38185085]
[1773110717288,0.004,2049.0,2048.6,2.38185085]
[1773110719124,0.002,2049.0,2048.7,1.16150525]
[1773110719285,0.002,2049.0,2048.8,1.16150525]
[1773110719484,0.002,2049.7,2048.8,1.16150525]
[1773110719689,0.002,2049.7,2049.2,1.16150525]
[1773110720038,0.002,2049.7,2049.1,3.3390516]
[1773110720039,0.002,2049.7,2049.6,1.16150525]
[1773110720192,0.002,2049.9,2049.6,1.16150525]
[1773110720589,0.002,2050.2,2049.9,1.16150525]
[1773110721100,0.002,2050.2,2050.1,1.16150525]
[1773110721329,0.002,2050.2,2049.6,12.83503795]
[1773110721330,0.005,2050.1,2049.7,1.16150525]
[1773110721732,0.002,2050.2,2049.7,1.16150525]
[1773110722094,0.002,2050.7,2049.8,3.3390516]
[1773110722344,0.002,2050.7,2050.2,1.16150525]
[1773110722639,0.002,2050.7,2050.5,1.16150525]
[1773110723228,0.002,2050.7,2050.6,1.16150525]
[1773110723427,3.92191493,2051.7,2050.6,1.16150525]
[1773110724192,2.70336045,2051.7,2050.6,1.16150525]
[1773110724405,2.42502675,2052.1,2050.8,1.16150525]
[1773110724604,1.21851037,2051.7,2050.8,1.16150525]
[1773110724818,1.21836009,2052.0,2050.9,1.16150525]
[1773110725027,1.21832358,2052.0,2051.0,1.2189176]
[1773110725243,3.64332827,2052.1,2051.0,2.38042285]
[1773110725394,3.64332827,2052.1,2051.0,1.16150525]
[1773110725593,3.3390516,2052.0,2050.7,1.21909591]
[1773110725895,3.64332827,2052.1,2050.7,2.38060116]
[1773110726304,1.17351057,2051.6,2050.4,1.16150525]
[1773110727018,4.55767212,2051.5,2050.4,1.16150525]
[1773110727399,1.21862052,2051.5,2050.4,1.16150525]
[1773110727763,1.2177664,2053.0,2051.2,1.16150525]
[1773110728058,2.39430784,2052.9,2051.4,1.16150525]
[1773110728193,2.39430784,2052.9,2051.5,1.16150525]
[1773110728194,1.17351057,2052.8,2051.5,1.16150525]
[1773110728394,4.51256217,2052.8,2051.5,1.16150525]
[1773110728695,4.51256217,2052.5,2051.1,3.88173825]
[1773110728920,4.51256217,2052.5,2050.7,1.274]
[1773110728921,1.17351057,2052.4,2051.2,1.16150525]
[1773110729124,2.39177478,2052.1,2050.8,1.16150525]
[1773110729601,4.50329027,2051.8,2050.4,2.38074542]
[1773110729934,4.50329027,2051.8,2050.4,2.38077343]
[1773110729935,1.17351057,2051.7,2050.4,2.38077343]
[1773110730226,3.3297797,2051.3,2050.1,1.21942536]
[1773110730397,3.3297797,2051.3,2050.0,2.38098542]
[1773110730598,3.3297797,2051.0,2050.0,1.16150525]
[1773110730796,3.3297797,2051.0,2049.6,3.3297797]
[1773110730797,4.50329027,2051.0,2049.7,1.21964935]
[1773110730990,1.17351057,2051.8,2049.8,1.16150525]
[1773110731193,1.17351057,2051.5,2050.2,1.16150525]
[1773110731630,2.56950173,2051.8,2050.2,1.16150525]
[1773110731631,1.21847926,2051.8,2050.2,1.16150525]
[1773110731840,2.62510092,2051.9,2050.8,1.16150525]
[1773110732045,3.84349012,2051.9,2050.8,1.16150525]
[1773110732346,1.17351057,2051.8,2050.4,1.16150525]
[1773110732722,3.84349012,2051.9,2050.4,1.16150525]
[1773110732961,2.62510092,2051.9,2050.5,1.16150525]
[1773110733258,2.39175791,2052.2,2050.7,1.16150525]
[1773110733752,1.354,2052.1,2050.8,1.23183419]
[1773110733962,2.3917179,2052.2,2050.8,1.23183419]
[1773110734160,1.15009541,2052.1,2050.8,1.18288656]
[1773110734664,4.48040413,2051.9,2050.4,1.23183419]
[1773110734967,1.15009541,2051.5,2049.7,1.23183419]
[1773110735270,1.15009541,2051.5,2049.9,1.23183419]
[1773110735271,2.57367992,2051.4,2049.9,1.23183419]
[1773110735421,1.21867992,2051.4,2049.9,1.23183419]
[1773110735621,1.21850173,2051.7,2050.3,1.23183419]
[1773110735848,1.15009541,2051.7,2050.3,1.23183419]
[1773110736052,4.48040413,2051.6,2050.3,1.23183419]
[1773110736222,1.15009541,2051.6,2050.3,1.23183419]
[1773110736877,1.15009541,2051.5,2049.8,2.45146537]
[1773110737172,1.15009541,2051.5,2050.1,1.23183419]
[1773110737173,2.57467992,2051.4,2050.1,1.23183419]
[1773110737372,1.21867992,2051.4,2050.1,1.23183419]
[1773110737579,1.356,2051.4,2050.3,3.33030872]
[1773110737877,1.356,2051.4,2050.2,1.23183419]
[1773110738680,1.15009541,2051.2,2050.0,1.21951219]
[1773110739261,2.57585817,2051.1,2049.9,2.45140587]
[1773110739585,1.21885817,2051.1,2049.7,1.23183419]
[1773110739878,1.357,2051.0,2049.7,1.23183419]
[1773110740247,2.50709541,2051.0,2049.7,1.23183419]
[1773110740981,1.15009541,2050.9,2049.4,4.87940908]
[1773110741179,1.15009541,2050.9,2049.4,6.11124327]
[1773110741500,2.36913188,2050.8,2049.4,1.23183419]
[1773110741784,1.15009541,2050.6,2049.3,1.21988832]
[1773110742355,1.15009541,2050.6,2049.3,2.45172251]
[1773110742680,1.358,2050.5,2049.4,1.23183419]
[1773110743579,1.21927428,2050.4,2049.5,1.2198097]
[1773110743782,1.21927428,2050.4,2049.2,5.172011]
[1773110743950,1.15009541,2051.1,2049.3,1.23183419]
[1773110744156,1.358,2051.0,2049.8,1.23183419]
[1773110744682,1.358,2051.2,2049.8,1.23183419]
[1773110745473,2.57685088,2051.2,2050.0,1.23183419]
[1773110745657,1.22068175,2051.4,2050.0,1.23183419]
[1773110745858,1.358,2051.3,2050.0,1.23183419]
[1773110746076,1.358,2051.2,2050.0,1.23183419]
[1773110746391,1.358,2051.3,2050.2,1.23183419]
[1773110747459,1.358,2051.3,2050.3,1.21933375]
[1773110747654,1.358,2051.3,2050.4,1.23183419]
[1773110748186,1.358,2051.3,2050.2,1.21935032]
[1773110748187,2.50809541,2051.3,2050.2,1.21935032]
[1773110748689,2.50809541,2051.3,2050.1,2.59285014]
[1773110748988,1.15009541,2051.2,2050.0,2.45130674]
[1773110749560,1.21885817,2051.1,2050.0,2.45130674]
[1773110750093,1.21885817,2051.1,2049.6,1.11656928]
[1773110750094,1.15150087,2051.0,2049.6,1.11656928]
[1773110750283,1.15150087,2051.0,2049.7,1.21969068]
[1773110750605,1.15150087,2051.0,2049.3,2.33649803]
[1773110750606,1.15150087,2050.9,2049.3,2.33649803]
[1773110750764,1.15150087,2050.9,2049.4,1.11656928]
[1773110751167,1.15150087,2050.6,2049.3,1.21992875]
[1773110751415,1.15150087,2050.4,2049.3,1.21992875]
[1773110751635,2.37089409,2050.2,2049.0,2.33664875]
[1773110751778,2.37089409,2050.2,2049.0,1.11656928]
[1773110752084,1.15150087,2049.7,2048.8,0.001]
[1773110753105,1.15150087,2049.4,2048.5,0.001]
[1773110753305,2.50850087,2049.3,2048.5,0.001]
[1773110753812,1.22004782,2049.1,2048.3,0.001]
[1773110754724,1.357,2049.0,2048.3,0.001]
[1773110755276,1.22004782,2049.1,2048.3,0.001]
[1773110755496,1.357,2049.0,2048.3,0.001]
[1773110755694,1.22016691,2048.9,2048.3,0.001]
[1773110756075,1.15150087,2048.6,2047.4,2.33858444]
[1773110756278,1.15150087,2048.6,2047.4,1.22205078]
[1773110756279,3.33822977,2048.4,2047.4,1.22205078]
[1773110756486,1.357,2048.3,2047.4,1.22205078]
[1773110757005,2.50850087,2048.3,2047.4,0.001]
[1773110757194,3.33822977,2048.1,2047.4,0.001]
[1773110757795,2.37208479,2048.2,2047.4,0.001]
[1773110757998,1.15150087,2048.1,2047.4,0.001]
[1773110758199,4.48973064,2048.0,2047.4,0.001]
[1773110758603,1.15150087,2048.0,2047.4,0.001]
[1773110758989,1.15150087,2048.0,2047.2,0.001]
[1773110758990,4.48973064,2047.8,2047.2,0.001]
[1773110759191,2.37208479,2048.2,2047.2,0.001]
[1773110759417,1.357,2048.1,2047.2,0.001]
[1773110759909,1.22070312,2048.0,2047.2,0.001]
[1773110760484,4.8828125,2048.2,2047.2,0.001]
[1773110760485,4.88255544,2048.2,2047.2,0.001]
[1773110760818,3.33822977,2047.8,2047.0,0.001]
[1773110760986,3.33822977,2047.8,2045.7,1.11656928]
[1773110760987,4.48973064,2047.2,2045.7,1.11656928]
[1773110761315,4.48973064,2047.2,2045.5,4.88830229]
[1773110761316,1.357,2047.1,2045.9,1.11656928]
[1773110761612,1.356,2047.0,2045.9,1.11656928]
[1773110761783,6.67645954,2047.8,2045.9,1.11656928]
[1773110761784,0.065536,2047.9,2046.2,1.11656928]
[1773110761982,1.15150087,2047.8,2046.3,1.11656928]
[1773110762220,8.22151915,2047.9,2046.6,3.33822977]
[1773110762221,1.22076273,2047.9,2046.6,3.33822977]
[1773110762519,1.356,2047.9,2047.0,1.11656928]
[1773110762821,4.69422977,2047.9,2046.6,1.11656928]
[1773110763021,5.84573064,2047.9,2046.6,1.11656928]
[1773110763431,1.15150087,2047.9,2046.6,4.45479905]
[1773110763729,4.69522977,2047.8,2046.6,1.11656928]
[1773110763935,1.22088196,2047.7,2046.7,1.22147847]
[1773110764113,1.22088196,2047.7,2046.8,0.001]
[1773110764288,1.22058392,2048.2,2046.8,1.11775847]
[1773110764626,1.357,2048.1,2046.8,1.11775847]
[1773110765208,1.11706153,2048.0,2046.8,1.11775847]
[1773110765514,1.22058392,2048.2,2046.8,1.11775847]
[1773110765515,1.357,2047.9,2046.8,1.11775847]
[1773110765716,1.22058392,2048.2,2046.8,1.11775847]
[1773110765917,1.357,2047.9,2047.0,1.11675847]
[1773110766334,1.357,2048.1,2047.0,1.11675847]
[1773110766519,1.11706153,2048.7,2047.1,1.11675847]
[1773110766827,2.47306153,2048.6,2047.2,1.16409011]
[1773110766999,1.356,2048.5,2047.2,1.16409011]
[1773110767325,1.11706153,2049.0,2047.5,1.11675847]
[1773110767528,1.356,2048.9,2047.5,1.11675847]
[1773110767928,1.356,2048.8,2047.7,1.11675847]
[1773110768128,1.22003422,2049.2,2047.8,1.11675847]
[1773110768331,1.11706153,2049.8,2048.1,2.55809531]
[1773110768638,1.11706153,2049.4,2047.8,1.11675847]
[1773110769194,1.356,2049.3,2047.8,1.11675847]
[1773110769401,2.47306153,2049.3,2047.8,1.11675847]
[1773110769599,1.11706153,2049.3,2047.8,1.11675847]
[1773110769799,1.22004782,2049.1,2047.9,1.22076273]
[1773110770014,1.22004782,2049.1,2047.9,2.3375212]
[1773110771108,1.355,2049.0,2047.9,2.3375212]
[1773110771297,1.355,2049.0,2048.0,1.11675847]
[1773110771911,1.22016691,2048.9,2048.0,2.33742585]
[1773110772198,1.21998828,2049.2,2048.0,2.33742585]
[1773110772421,1.355,2049.1,2048.0,2.33742585]
[1773110773116,1.21998828,2049.2,2048.0,2.33742585]
[1773110773319,1.21998828,2049.2,2048.0,1.22066738]
[1773110773622,1.11706153,2049.0,2047.5,1.11675847]
[1773110773798,1.11706153,2048.5,2047.1,2.33799827]
[1773110774007,1.11706153,2048.3,2047.1,1.11675847]
[1773110774337,1.11706153,2048.3,2047.1,2.33799516]
[1773110774558,1.11706153,2048.3,2047.2,1.11675847]
[1773110774840,1.355,2048.4,2047.2,1.11675847]
[1773110775444,2.47206153,2048.4,2047.2,1.11675847]
[1773110775647,3.34115828,2048.2,2046.9,1.11675847]
[1773110775955,1.355,2048.1,2047.1,1.11675847]
[1773110776410,1.355,2048.0,2047.1,1.11675847]
[1773110776839,1.355,2048.2,2047.1,1.11675847]
[1773110777746,1.354,2048.1,2047.1,1.11675847]
[1773110777955,2.57466824,2048.1,2047.2,2.33793861]
[1773110778154,7.03288805,2048.1,2046.9,1.11675847]
[1773110778444,5.67888805,2048.1,2046.9,1.11675847]
[1773110778615,1.11706153,2047.9,2046.8,0.001]
[1773110778806,3.34115828,2047.8,2046.8,0.001]
[1773110779005,3.34115828,2047.8,2046.8,1.22240365]
[1773110779233,1.11706153,2047.9,2046.8,1.22240365]
[1773110779907,1.22088196,2047.7,2046.8,1.22238927]
[1773110780309,1.22088196,2047.7,2046.8,0.001]
[1773110780515,1.22088196,2047.7,2046.8,2.33917619]
[1773110780516,1.354,2047.6,2046.8,2.33917619]
[1773110781244,1.22086411,2047.8,2046.8,2.33917619]
[1773110781545,1.354,2047.5,2046.8,1.11775847]
[1773110781922,1.22082234,2047.8,2046.8,2.33917224]
[1773110782122,1.22082234,2047.8,2046.9,1.11675847]
[1773110782353,0.065536,2048.2,2046.9,1.11675847]
[1773110782354,1.22058392,2048.2,2046.9,1.11675847]
[1773110782511,1.354,2047.9,2046.9,1.11675847]
[1773110782709,1.22058392,2048.2,2046.9,1.11675847]
[1773110783023,1.22058392,2048.2,2046.9,1.16409889]
[1773110783220,1.22256263,2048.3,2046.9,1.11675847]
[1773110783533,1.354,2048.2,2046.9,1.11675847]
[1773110783917,1.22064352,2048.1,2047.0,2.33805793]
[1773110784512,8.22573237,2048.3,2047.1,1.11675847]
[1773110784513,0.002,2048.3,2047.1,1.11675847]
[1773110784819,1.22254277,2048.3,2047.2,1.11675847]
[1773110785546,1.353,2048.2,2047.2,1.11675847]
[1773110785754,0.002,2048.5,2048.0,1.11675847]
[1773110785927,0.002,2048.5,2048.2,1.11675847]
[1773110786244,0.002,2048.5,2048.1,1.22064352]
[1773110786245,0.002,2048.8,2048.3,1.11675847]
[1773110786959,0.002,2048.8,2048.5,1.11675847]
[1773110787344,1.21962576,2049.9,2048.5,1.11675847]
[1773110787659,3.34079883,2049.6,2048.5,1.11675847]
[1773110787965,4.87828674,2050.0,2048.7,1.11675847]
[1773110788262,1.354,2049.9,2048.7,1.11675847]
[1773110788444,4.69479883,2049.9,2048.7,1.11675847]
[1773110788755,1.354,2049.8,2048.7,1.11675847]
[1773110789353,4.87828674,2050.0,2048.9,1.11675847]
[1773110789524,1.354,2049.8,2048.9,1.11675847]
[1773110790059,1.21969068,2049.7,2048.8,1.22018906]
[1773110790561,1.21969068,2049.7,2048.7,2.33699949]
[1773110790756,0.002,2049.6,2048.7,2.33699949]
[1773110791059,0.002,2049.6,2048.4,3.33442563]
[1773110791060,3.33442563,2049.4,2048.4,1.22046475]
[1773110791431,3.33442563,2049.4,2048.4,2.33722322]
[1773110791834,1.11706153,2049.3,2048.1,3.77869324]
[1773110792165,1.11706153,2049.3,2047.8,4.88319715]
[1773110792166,1.11706153,2049.1,2047.8,1.22082234]
[1773110792335,1.353,2049.0,2047.8,1.22082234]
[1773110792740,1.21998828,2049.2,2048.0,1.11675847]
[1773110793070,3.33442563,2049.0,2048.0,1.11675847]
[1773110793362,1.353,2049.1,2048.0,1.11675847]
[1773110793729,1.352,2049.0,2048.2,1.10673057]
[1773110794150,1.352,2049.0,2048.3,1.22052433]
[1773110794474,2.5721346,2049.0,2048.0,1.22066258]
[1773110795368,3.75178053,2049.0,2047.7,1.10673057]
[1773110795664,3.33442563,2048.8,2047.7,1.10673057]
[1773110795839,3.33442563,2048.8,2047.5,4.88376636]
[1773110795840,4.51407156,2048.8,2047.5,1.22098241]
[1773110796043,4.51407156,2048.5,2047.3,2.32780795]
[1773110796236,1.22046475,2048.4,2047.3,2.32780795]
[1773110796558,2.53164593,2048.3,2047.0,4.88499756]
[1773110796758,2.53164593,2048.3,2047.0,5.99172813]
[1773110796930,1.352,2048.2,2047.1,1.10673057]
[1773110797567,5.86607156,2048.2,2046.9,1.22132109]
[1773110797770,1.17964593,2048.1,2046.8,0.001]
[1773110797958,1.17964593,2048.1,2046.8,1.22236263]
[1773110798139,1.22082234,2047.8,2046.8,1.22236263]
[1773110799759,1.351,2047.7,2046.8,1.22236263]
[1773110800272,4.88323255,2047.9,2046.8,1.22236263]
[1773110800570,1.351,2047.8,2046.8,1.22236263]
[1773110801054,1.22074925,2048.0,2046.8,1.22236263]
[1773110801377,1.351,2047.9,2046.8,1.22236263]
[1773110802234,1.22082234,2047.8,2046.8,1.22236263]
[1773110802633,7.41393531,2047.9,2046.9,1.10673057]
[1773110802634,1.22079791,2047.9,2046.9,1.10673057]
[1773110802830,1.35,2047.8,2047.0,0.001]
[1773110803837,2.57044119,2048.5,2047.2,1.10673057]
[1773110804063,1.35,2048.5,2047.2,1.10673057]
[1773110804238,1.22046475,2048.4,2047.3,1.2211205]
[1773110804962,1.22037543,2048.6,2047.4,1.10673057]
[1773110805368,1.35,2048.8,2047.5,1.10673057]
[1773110805565,1.349,2048.8,2047.5,1.10673057]
[1773110806447,1.349,2048.8,2047.6,2.32767216]
[1773110807266,1.17964593,2048.7,2047.6,2.32767216]
[1773110807694,1.17964593,2048.7,2047.6,1.22094159]
[1773110808372,1.22040517,2048.5,2047.5,4.88376636]
[1773110809367,1.22028652,2048.7,2047.5,5.99049693]
[1773110809574,1.347,2048.7,2047.6,1.10673057]
[1773110809773,2.52664593,2048.7,2047.6,1.10673057]
[1773110809979,1.17964593,2048.6,2047.5,4.88376636]
[1773110810275,1.17964593,2048.6,2047.5,5.99049693]
[1773110810773,2.3999927,2048.6,2047.5,5.99049693]
[1773110811157,2.40001564,2048.6,2047.5,5.99049693]
[1773110811342,1.17964593,2048.6,2047.5,5.99049693]
[1773110811550,1.346,2048.8,2047.6,1.10673057]
[1773110812689,1.17964593,2048.7,2047.7,1.22088196]
[1773110812886,1.17964593,2048.4,2047.1,4.88481668]
[1773110813089,1.17964593,2048.4,2047.2,1.10673057]
[1773110813680,5.90799061,2048.8,2047.0,1.22228044]
[1773110813681,1.17964593,2048.2,2047.0,1.22228044]
[1773110813893,1.17964593,2047.9,2047.0,1.22228044]
[1773110814679,2.40046827,2047.8,2047.0,0.001]
[1773110815089,1.1283212,2047.6,2046.8,0.001]
[1773110816312,4.47006023,2047.1,2046.1,1.22183666]
[1773110816599,1.1283212,2047.1,2046.1,1.22183666]
[1773110816770,2.56429946,2047.0,2045.9,4.88734665]
[1773110817175,1.1283212,2046.9,2045.9,4.88734665]
[1773110817757,1.1283212,2047.3,2046.8,0.001]
[1773110817955,2.4703212,2047.2,2046.8,0.001]
[1773110818168,1.1283212,2047.1,2046.8,0.001]
[1773110818396,1.1283212,2047.1,2046.5,0.001]
[1773110818397,1.1283212,2047.0,2046.5,0.001]
[1773110818689,1.1283212,2047.0,2045.6,2.27616263]
[1773110818889,1.1283212,2046.8,2045.6,2.27616263]
[1773110819090,1.342,2046.7,2045.7,1.05402732]
[1773110819292,1.342,2046.9,2045.7,1.05402732]
[1773110820194,1.342,2046.9,2045.8,1.05402732]
[1773110820696,1.342,2046.9,2045.7,1.05402732]
[1773110820990,1.342,2046.9,2045.8,2.27604315]
[1773110821192,1.22136314,2046.9,2045.8,2.27604315]
[1773110821496,1.1283212,2046.8,2045.8,1.22201583]
[1773110822062,1.1283212,2046.7,2045.8,1.22201583]
[1773110822566,2.56336314,2046.9,2045.8,1.22201583]
[1773110822769,1.1283212,2046.8,2045.8,1.22201583]
[1773110822969,1.1283212,2046.6,2045.4,1.22225481]
[1773110823266,1.1283212,2047.0,2045.7,1.05402732]
[1773110823467,2.34963075,2047.0,2045.7,1.05402732]
[1773110823911,1.05316238,2046.9,2045.4,2.32223911]
[1773110824278,1.05316238,2046.9,2045.5,1.0999843]
[1773110825002,2.27456513,2046.9,2045.7,1.0999843]
[1773110825302,1.05316238,2046.8,2045.6,1.22213531]
[1773110827006,1.05316238,2046.6,2045.5,4.88854125]
[1773110829004,1.05316238,2046.4,2045.3,0.001]
[1773110829376,1.05316238,2046.3,2045.3,0.001]
[1773110829676,1.05316238,2046.3,2045.8,0.001]
[1773110830406,1.22159784,2046.5,2045.8,0.001]
[1773110830407,0.002,2046.6,2045.8,1.1009843]
[1773110830874,0.002,2046.6,2045.8,0.001]
[1773110831071,0.002,2046.6,2045.8,1.1009843]
[1773110832183,0.002,2046.6,2045.8,0.001]
[1773110832492,0.002,2046.6,2045.9,1.0999843]
[1773110832897,0.002,2046.6,2045.8,0.001]
[1773110833098,1.05516238,2046.6,2045.8,0.001]
[1773110833286,0.002,2046.6,2045.8,0.001]
[1773110833713,0.002,2046.6,2045.8,1.1009843]
[1773110834490,0.002,2046.6,2045.8,0.001]
[1773110835204,0.002,2046.6,2045.8,2.32300013]
[1773110835584,0.002,2046.6,2045.8,1.22301583]
[1773110835790,0.002,2046.6,2045.8,2.32300013]
[1773110836179,1.05516238,2046.6,2045.8,0.001]
[1773110836587,1.05516238,2046.6,2045.6,1.22211888]
[1773110836997,1.05516238,2046.6,2045.6,2.32210318]
[1773110837220,0.002,2046.6,2045.7,1.0999843]
[1773110837767,1.05516238,2046.6,2045.6,1.22211888]